bitfinex-derivatives/quotes_SOLF0:USTF0_20240906
["timestamp","ask_amount","ask_price","bid_price","bid_amount"]
[1725625125182,3.8483,129.95,129.91,3.8493]
[1725625125375,409.32197,129.97,129.91,3.8493]
[1725625125570,0.05279218,129.94,129.91,3.8493]
[1725625126780,3.90129218,129.94,129.91,3.8493]
[1725625131880,3.90129218,129.94,129.91,3.9025104]
[1725625132081,3.8488,129.93,129.91,0.0532104]
[1725625132283,0.05279218,129.94,129.91,0.0532104]
[1725625132284,3.78184499,129.92,129.91,0.0532104]
[1725625132585,29.59,129.92,129.91,0.0532104]
[1725625132792,37.24587502,129.92,129.91,0.0532104]
[1725625133987,7.65587502,129.92,129.91,0.0532104]
[1725625134190,3.849,129.92,129.91,0.0532104]
[1725625136187,7.68285789,129.92,129.91,0.0532104]
[1725625141095,3.849,129.92,129.91,0.0532104]
[1725625141786,0.05279218,129.94,129.91,0.0532104]
[1725625142388,0.05279218,129.94,129.91,29.6432104]
[1725625143594,0.05279218,129.94,129.91,0.0532104]
[1725625143788,0.05279218,129.94,129.91,3.9024104]
[1725625145501,0.05279218,129.94,129.92,3.849]
[1725625147403,0.05279218,129.94,129.91,3.9024104]
[1725625147607,0.05279218,129.94,129.91,0.0532104]
[1725625147998,3.90139218,129.94,129.91,0.0532104]
[1725625148492,0.05279218,129.94,129.91,3.9024104]
[1725625148894,0.05279218,129.94,129.91,29.6432104]
[1725625149098,0.05279218,129.94,129.92,3.8489]
[1725625150293,0.05279218,129.94,129.93,3.8488]
[1725625152998,0.05279218,129.94,129.92,3.8489]
[1725625154502,0.05279218,129.94,129.91,0.0532104]
[1725625154705,3.90149218,129.94,129.91,0.0532104]
[1725625155212,3.849,129.92,129.91,0.0532104]
[1725625155802,3.8489,129.93,129.91,0.0532104]
[1725625156710,3.849,129.92,129.91,0.0532104]
[1725625158512,7.78363029,129.92,129.91,0.0532104]
[1725625160628,3.849,129.92,129.91,0.0532104]
[1725625161027,3.8489,129.93,129.91,0.0532104]
[1725625161224,0.05279218,129.94,129.91,0.0532104]
[1725625161926,3.90139218,129.94,129.91,0.0532104]
[1725625162936,0.05279218,129.94,129.91,3.9025104]
[1725625163125,0.05279218,129.94,129.91,0.0532104]
[1725625163435,3.8489,129.93,129.91,0.0532104]
[1725625168937,3.849,129.92,129.91,0.0532104]
[1725625172828,0.05279218,129.94,129.91,0.0532104]
[1725625173432,3.8488,129.93,129.91,0.0532104]
[1725625173638,0.05279218,129.94,129.91,0.0532104]
[1725625174042,3.90139218,129.94,129.91,0.0532104]
[1725625174733,0.05279218,129.94,129.91,0.0532104]
[1725625174929,29.59,129.93,129.91,0.0532104]
[1725625175245,29.59,129.93,129.84,30.9777]
[1725625175246,3.8504,129.88,129.84,30.9777]
[1725625176337,0.05286876,129.87,129.85,3.8511]
[1725625176529,0.05286876,129.87,129.85,3.90292778]
[1725625178345,0.05286876,129.87,129.86,3.8508]
[1725625178544,0.05286876,129.87,129.86,33.4408]
[1725625180941,0.05286876,129.87,129.86,29.59]
[1725625181644,0.05286876,129.87,129.85,0.05182778]
[1725625182144,3.8508,129.86,129.85,0.05182778]
[1725625192142,3.8524,129.81,129.66,3.54792497]
[1725625192445,3.8524,129.81,129.77,2.837]
[1725625193444,3.8523,129.82,129.78,33.443]
[1725625193648,0.05834657,129.8,129.78,33.443]
[1725625196944,0.05834657,129.8,129.79,3.8529]
[1725625197946,0.05834657,129.8,129.79,33.4429]
[1725625198249,3.8515,129.84,129.8,3.8525]
[1725625199238,0.05798937,129.83,129.8,3.8525]
[1725625202055,3.90968937,129.83,129.8,3.8525]
[1725625202450,0.05798937,129.83,129.8,3.8525]
[1725625202951,0.05798937,129.83,129.8,0.05743444]
[1725625203147,0.05798937,129.83,129.81,29.59]
[1725625203449,1.2999,129.89,129.84,3.8514]
[1725625203650,29.59,129.9,129.84,3.8514]
[1725625203848,33.45111716,129.92,129.83,29.59]
[1725625204043,33.45111716,129.92,129.85,3.851]
[1725625204044,29.59,129.92,129.85,3.851]
[1725625204451,29.64470215,129.9,129.83,29.59]
[1725625204655,29.64470215,129.9,129.83,33.4416]
[1725625205452,3.8503,129.88,129.84,3.8513]
[1725625205746,0.05590547,129.87,129.84,3.8513]
[1725625206148,0.05590547,129.87,129.82,1.4015]
[1725625206456,0.05590547,129.87,129.84,0.05085019]
[1725625208358,0.05590547,129.87,129.84,3.90205019]
[1725625211162,3.851,129.86,129.84,0.05085019]
[1725625211361,0.05590547,129.87,129.84,0.05085019]
[1725625211858,3.90670547,129.87,129.84,0.05085019]
[1725625212769,0.05590547,129.87,129.84,0.05085019]
[1725625212955,29.64590547,129.87,129.84,0.05085019]
[1725625213159,29.59,129.85,129.84,0.05085019]
[1725625213458,7.69123744,129.85,129.84,0.05085019]
[1725625215259,3.8511,129.85,129.84,0.05085019]
[1725625220371,7.73605653,129.85,129.84,0.05085019]
[1725625222966,3.8511,129.85,129.84,0.05085019]
[1725625224174,1.0,129.86,129.84,0.05085019]
[1725625225377,4.8509,129.86,129.84,0.05085019]
[1725625228578,1.0,129.86,129.84,3.90225019]
[1725625228775,1.0,129.86,129.84,0.05085019]
[1725625229168,3.8511,129.85,129.84,0.05085019]
[1725625229580,7.64953269,129.85,129.84,0.05085019]
[1725625229879,3.8522,129.82,129.77,3.9436]
[1725625230375,3.85815648,129.81,129.78,3.853]
[1725625230580,3.8522,129.82,129.78,3.853]
[1725625230983,0.05692092,129.81,129.78,3.853]
[1725625232680,0.05692092,129.81,129.79,3.8529]
[1725625233281,0.05692092,129.81,129.79,3.8526]
[1725625235177,0.05692092,129.81,129.78,3.8531]
[1725625235882,0.05692092,129.81,129.77,7.7969]
[1725625235883,3.90932092,129.81,129.77,7.7969]
[1725625236082,3.90932092,129.81,129.77,3.9436]
[1725625236579,0.05692092,129.81,129.78,3.8532]
[1725625238690,3.90952092,129.81,129.77,7.797]
[1725625238893,3.90952092,129.81,129.77,3.9436]
[1725625239998,0.05692092,129.81,129.78,3.8531]
[1725625240796,0.05692092,129.81,129.79,3.8528]
[1725625240998,0.05692092,129.81,129.78,29.59]
[1725625241293,2.6945,129.9,129.84,3.8512]
[1725625241688,2.6945,129.9,129.83,29.59]
[1725625242300,0.05079631,129.88,129.83,29.59]
[1725625243402,3.90109631,129.88,129.84,3.8513]
[1725625243600,3.90109631,129.88,129.85,29.59]
[1725625243601,0.05079631,129.88,129.85,29.59]
[1725625243796,0.05079631,129.88,129.87,29.59]
[1725625244101,0.05079631,129.88,129.86,3.8507]
[1725625244306,0.05079631,129.88,129.86,3.89947777]
[1725625245204,0.05079631,129.88,129.87,3.8505]
[1725625246000,0.05079631,129.88,129.87,33.4405]
[1725625246302,38.93044277,129.95,129.89,3.8499]
[1725625246597,3.8491,129.92,129.87,3.8502]
[1725625246801,3.8491,129.92,129.86,29.59]
[1725625247199,29.59,129.94,129.88,3.8502]
[1725625247200,3.8489,129.93,129.88,3.8502]
[1725625247506,38.93044277,129.95,129.87,29.59]
[1725625247797,37.61254277,129.95,129.89,29.59]
[1725625248203,37.61254277,129.95,129.91,29.59]
[1725625248403,37.61254277,129.95,129.92,1.3097]
[1725625249596,17.61668137,129.95,129.92,1.3097]
[1725625249804,137.18117432,129.99,129.92,1.3097]
[1725625250304,3.8482,129.95,129.92,1.3097]
[1725625251398,3.89957203,129.95,129.92,1.3097]
[1725625251705,3.89957203,129.95,129.92,1.36519876]
[1725625251903,0.05137203,129.95,129.93,29.59]
[1725625252406,0.05137203,129.95,129.93,34.92508129]
[1725625252602,0.05137203,129.95,129.94,3.8485]
[1725625253104,0.05137203,129.95,129.93,31.0026]
[1725625254102,0.05137203,129.95,129.93,34.8512]
[1725625256106,0.05137203,129.95,129.93,31.0026]
[1725625257203,0.05137203,129.95,129.93,34.8513]
[1725625258007,0.05137203,129.95,129.93,29.59]
[1725625258208,0.05137203,129.95,129.92,5.21409876]
[1725625259598,379.73197,129.97,129.94,29.59]
[1725625259798,377.58277,129.97,129.96,29.59]
[1725625260501,377.58277,129.97,129.96,33.4379]
[1725625260709,377.58277,129.97,129.95,29.64015887]
[1725625261113,377.58277,129.97,129.95,33.48815887]
[1725625262710,377.64005732,129.97,129.95,33.48815887]
[1725625262907,377.64005732,129.97,129.95,0.05015887]
[1725625263217,3.7873245,129.96,129.95,0.05015887]
[1725625263612,3.8479,129.96,129.95,0.05015887]
[1725625263913,377.64005732,129.97,129.95,0.05015887]
[1725625264710,381.48785732,129.97,129.95,0.05015887]
[1725625264917,377.64005732,129.97,129.95,0.05015887]
[1725625266211,381.48785732,129.97,129.95,0.05015887]
[1725625270716,3.8479,129.96,129.95,0.05015887]
[1725625270918,7.78902678,129.96,129.95,0.05015887]
[1725625271312,33.53112678,129.96,129.88,1.4232]
[1725625271516,33.53112678,129.96,129.86,29.59]
[1725625271517,29.59,129.94,129.86,29.59]
[1725625271817,29.59,129.94,129.82,2.7864]
[1725625271818,29.59,129.94,129.85,29.59]
[1725625272021,29.59,129.94,129.86,29.59]
[1725625272517,0.05588987,129.91,129.9,29.59]
[1725625272705,377.58277,129.97,129.9,33.4371896]
[1725625272911,381.43047,129.97,129.92,33.4389]
[1725625273111,0.05156237,129.95,129.92,33.4389]
[1725625273911,0.05156237,129.95,129.92,33.48859064]
[1725625277414,0.05156237,129.95,129.93,3.8487]
[1725625277615,0.05156237,129.95,129.94,29.59]
[1725625278115,0.05156237,129.95,129.94,33.4385]
[1725625279521,0.05156237,129.95,129.94,29.59]
[1725625279816,0.05156237,129.95,129.93,1.3886]
[1725625280910,0.05156237,129.95,129.92,0.04969064]
[1725625281115,3.8485,129.94,129.92,0.04969064]
[1725625282520,3.89986237,129.95,129.92,0.04969064]
[1725625283022,3.89976237,129.95,129.92,0.04969064]
[1725625290820,0.05156237,129.95,129.92,0.04969064]
[1725625291617,3.8487,129.94,129.92,0.04969064]
[1725625291818,0.05156237,129.95,129.92,0.04969064]
[1725625292318,3.8485,129.94,129.92,0.04969064]
[1725625293324,0.05156237,129.95,129.92,0.04969064]
[1725625294426,3.8485,129.94,129.92,0.04969064]
[1725625294622,0.05156237,129.95,129.92,0.04969064]
[1725625295221,3.89986237,129.95,129.92,0.04969064]
[1725625300830,3.8485,129.94,129.92,0.04969064]
[1725625302230,3.8485,129.94,129.92,11.87969064]
[1725625302630,0.05156237,129.95,129.93,11.83]
[1725625302934,0.05156237,129.95,129.94,11.83]
[1725625304131,0.05156237,129.95,129.94,15.6785]
[1725625304331,11.83,130.04,129.94,11.83]
[1725625304518,5.17616569,130.03,129.97,11.83]
[1725625304720,3.847,130.0,129.97,11.83]
[1725625304924,5.17616569,130.03,129.97,11.83]
[1725625305331,3.8469,130.0,129.97,11.83]
[1725625305632,3.8469,130.0,129.97,11.88387097]
[1725625306030,3.8469,130.0,129.97,0.05387097]
[1725625306930,3.847,129.99,129.97,0.05387097]
[1725625309730,5.17616569,130.03,129.97,0.05387097]
[1725625309731,3.8468,130.0,129.97,0.05387097]
[1725625312431,115.88670266,130.01,129.97,0.05387097]
[1725625312627,112.04020266,130.01,129.97,0.05387097]
[1725625313538,3.8468,130.0,129.97,0.05387097]
[1725625315427,112.04020266,130.01,129.97,0.05387097]
[1725625315626,3.847,129.99,129.97,0.05387097]
[1725625320344,3.90625782,129.99,129.97,0.05387097]
[1725625320547,0.05925782,129.99,129.97,0.05387097]
[1725625326042,0.05925782,129.99,129.98,11.82]
[1725625326637,0.05925782,129.99,129.97,0.05387097]
[1725625327149,3.90655782,129.99,129.97,0.05387097]
[1725625328545,3.8473,129.98,129.97,0.05387097]
[1725625330051,3.8473,129.98,129.97,11.87387097]
[1725625330743,3.90625782,129.99,129.97,11.87387097]
[1725625330949,0.05925782,129.99,129.98,15.6673]
[1725625331347,0.05925782,129.99,129.98,11.82]
[1725625331948,0.05925782,129.99,129.98,15.6673]
[1725625332155,0.05925782,129.99,129.97,0.05387097]
[1725625332543,3.8473,129.98,129.97,0.05387097]
[1725625338451,3.90645782,129.99,129.97,0.05387097]
[1725625338745,3.90645782,129.99,129.97,11.87387097]
[1725625339863,3.90645782,129.99,129.97,0.05387097]
[1725625340158,3.90645782,129.99,129.97,11.87387097]
[1725625340948,0.05925782,129.99,129.97,11.87387097]
[1725625341161,0.05925782,129.99,129.98,11.82]
[1725625343459,3.8473,129.98,129.97,0.05387097]
[1725625345850,0.05925782,129.99,129.97,11.87387097]
[1725625346154,0.05925782,129.99,129.98,11.82]
[1725625347358,0.05925782,129.99,129.97,11.87387097]
[1725625348265,0.05925782,129.99,129.98,15.6673]
[1725625348567,0.05925782,129.99,129.98,11.82]
[1725625350357,0.05925782,129.99,129.98,15.6673]
[1725625357673,224.79318,130.02,130.01,3.8464]
[1725625357874,224.79318,130.02,130.01,15.6664]
[1725625358074,117.40318,130.02,130.01,15.6664]
[1725625358274,117.40318,130.02,130.01,19.44129873]
[1725625358673,110.95738,130.02,130.01,19.44129873]
[1725625358968,54.77288,130.02,130.01,19.44129873]
[1725625361075,5.2121,130.1,130.05,3.8451]
[1725625361267,5.2121,130.1,130.07,11.82]
[1725625361675,1.3682,130.1,130.06,11.82]
[1725625362272,5.2121,130.1,130.07,0.05629742]
[1725625362467,0.05425152,130.09,130.07,0.05629742]
[1725625363876,3.89845152,130.09,130.07,0.05629742]
[1725625364078,0.05425152,130.09,130.07,0.05629742]
[1725625365680,0.05425152,130.09,130.08,11.82]
[1725625366280,0.05425152,130.09,130.07,0.05629742]
[1725625367476,0.05425152,130.09,130.08,11.82]
[1725625368880,467.13030618,130.24,130.08,11.82]
[1725625369084,467.13030618,130.24,130.12,11.82]
[1725625369085,15.9474,130.18,130.12,11.82]
[1725625369780,3.8422,130.16,130.12,11.82]
[1725625370182,15.9474,130.18,130.13,0.05655969]
[1725625370183,4.1274,130.18,130.13,0.05655969]
[1725625370379,11.82,130.17,130.13,0.05655969]
[1725625370583,3.8422,130.16,130.13,0.05655969]
[1725625371689,3.8423,130.15,130.13,0.05655969]
[1725625372089,11.82,130.17,130.13,0.05655969]
[1725625372386,3.8421,130.16,130.13,0.05655969]
[1725625372585,8.02022823,130.18,130.13,11.87655969]
[1725625372785,4.1274,130.18,130.17,11.82]
[1725625373186,4.1274,130.18,130.15,15.6621]
[1725625373388,4.1274,130.18,130.16,0.05081526]
[1725625373783,99.32060618,130.24,130.16,0.05081526]
[1725625373984,3.8409,130.2,130.18,11.82]
[1725625374195,4.0583,130.23,130.18,11.82]
[1725625374385,4.0583,130.23,130.18,11.87444211]
[1725625375081,3.8403,130.22,130.18,15.71564211]
[1725625375285,4.0583,130.23,130.18,15.71564211]
[1725625375486,11.82,130.22,130.18,0.05444211]
[1725625375687,3.8406,130.21,130.18,3.89584211]
[1725625376188,11.82,130.22,130.18,0.05444211]
[1725625377383,3.8408,130.2,130.18,0.05444211]
[1725625379595,11.82,130.22,130.18,0.05444211]
[1725625380089,3.8408,130.2,130.18,0.05444211]
[1725625380587,11.82,130.28,130.19,11.82]
[1725625380884,4.1654,130.27,130.21,11.82]
[1725625381079,3.8393,130.26,130.22,3.89574849]
[1725625381278,4.1654,130.27,130.22,0.05574849]
[1725625381484,15.9854,130.27,130.22,0.05574849]
[1725625381686,3.8392,130.26,130.22,3.89574849]
[1725625383291,0.05503746,130.25,130.22,3.89574849]
[1725625383493,0.05503746,130.25,130.23,3.8399]
[1725625385989,0.05503746,130.25,130.22,0.05574849]
[1725625386188,0.05503746,130.25,130.17,3.83882553]
[1725625386189,29.5,130.24,130.17,3.83882553]
[1725625386487,3.84,130.23,130.19,3.8408]
[1725625386792,29.5,130.24,130.16,33.41105323]
[1725625386989,2.7791,130.22,130.16,33.41105323]
[1725625387391,2.7791,130.22,130.18,0.05920101]
[1725625387585,2.7791,130.22,130.19,3.8409]
[1725625387586,0.05160578,130.2,130.19,3.8409]
[1725625388594,1.0,130.25,130.21,3.8404]
[1725625389202,1.0,130.25,130.21,3.8403]
[1725625389491,1.0,130.25,130.2,29.5]
[1725625389700,2.7184,130.27,130.24,3.8393]
[1725625389890,1.3171,130.27,130.25,29.5]
[1725625390085,3.8374,130.32,130.26,29.5]
[1725625390287,3.90012677,130.32,130.27,29.5]
[1725625390501,1.3171,130.31,130.25,29.5]
[1725625390685,1.3171,130.31,130.28,0.05621258]
[1725625391085,2.7184,130.31,130.28,0.05621258]
[1725625391287,1.2923,130.3,130.28,0.05621258]
[1725625392090,2.7184,130.31,130.29,29.5]
[1725625392396,1.2923,130.34,130.29,29.5]
[1725625393000,5.129,130.34,130.3,0.05271035]
[1725625393295,1.2923,130.34,130.3,0.05271035]
[1725625394600,0.05387976,130.33,130.32,29.5]
[1725625395102,3.836,130.37,130.32,29.5]
[1725625395292,2.7181,130.39,130.32,29.5]
[1725625395494,3.8358,130.37,130.32,29.5]
[1725625395705,3.8358,130.37,130.33,0.05292027]
[1725625396498,2.7181,130.39,130.33,0.05292027]
[1725625396705,3.8361,130.36,130.33,0.05292027]
[1725625397207,32.2181,130.39,130.33,0.05292027]
[1725625397705,1.0,130.38,130.33,0.05292027]
[1725625398202,3.8364,130.35,130.33,0.05292027]
[1725625399808,3.8366,130.34,130.33,0.05292027]
[1725625400900,3.8366,130.34,130.29,3.838]
[1725625400901,3.837,130.33,130.29,29.5]
[1725625401314,1.369,130.35,130.29,29.5]
[1725625402002,1.369,130.35,130.31,0.05451623]
[1725625402312,3.8368,130.34,130.31,0.05451623]
[1725625404011,3.8368,130.34,130.31,3.89201623]
[1725625404603,3.8368,130.34,130.31,0.05451623]
[1725625404809,1.369,130.35,130.31,0.05451623]
[1725625405005,5.24548157,130.35,130.31,0.05451623]
[1725625405315,3.8371,130.33,130.31,0.05451623]
[1725625407111,3.8368,130.34,130.31,0.05451623]
[1725625408017,1.0,130.38,130.32,29.5]
[1725625408505,1.0,130.38,130.34,0.05267524]
[1725625408903,0.05516484,130.37,130.34,0.05267524]
[1725625409712,3.8364,130.35,130.34,0.05267524]
[1725625415212,3.8361,130.36,130.34,0.05267524]
[1725625415414,0.05516484,130.37,130.34,0.05267524]
[1725625416716,3.89106484,130.37,130.34,0.05267524]
[1725625419415,3.8361,130.36,130.34,0.05267524]
[1725625421122,0.05516484,130.37,130.34,0.05267524]
[1725625421318,0.05516484,130.37,130.35,29.5]
[1725625421524,0.05516484,130.37,130.36,3.8361]
[1725625421729,2.6447,130.41,130.35,29.5]
[1725625421915,2.6447,130.41,130.37,29.5]
[1725625422425,6.4795,130.41,130.37,29.5]
[1725625422824,6.4795,130.41,130.38,0.05531529]
[1725625422825,0.04846843,130.4,130.38,0.05531529]
[1725625423743,0.04846843,130.4,130.39,29.5]
[1725625424337,0.04846843,130.4,130.39,33.3352]
[1725625424741,0.04846843,130.4,130.38,29.55531529]
[1725625427546,0.04846843,130.4,130.39,3.8352]
[1725625427741,0.04846843,130.4,130.39,33.3352]
[1725625429448,3.8338,130.44,130.39,33.3352]
[1725625429847,3.8338,130.44,130.4,3.87158994]
[1725625430048,3.8338,130.44,130.4,3.8349]
[1725625430252,3.8338,130.44,130.4,7.59064528]
[1725625430444,3.8338,130.44,130.4,3.8349]
[1725625430747,3.8338,130.44,130.41,0.04865777]
[1725625432048,3.8338,130.44,130.41,29.54865777]
[1725625432250,3.8334,130.45,130.41,29.54865777]
[1725625433150,3.8334,130.45,130.41,33.38305777]
[1725625433854,3.8338,130.44,130.41,37.28495144]
[1725625434247,4.0294,130.46,130.41,0.04865777]
[1725625434652,3.8342,130.43,130.41,0.04865777]
[1725625435351,4.0294,130.46,130.41,0.04865777]
[1725625436156,3.8343,130.42,130.41,0.04865777]
[1725625436852,3.834,130.43,130.41,0.04865777]
[1725625437150,4.0294,130.46,130.41,0.04865777]
[1725625437549,4.0294,130.46,130.41,3.88315777]
[1725625437956,3.834,130.43,130.41,3.88315777]
[1725625438756,3.88543437,130.43,130.41,3.88315777]
[1725625439848,0.05143437,130.43,130.41,3.88315777]
[1725625440360,3.88543437,130.43,130.41,0.04865777]
[1725625440566,0.05143437,130.43,130.41,0.04865777]
[1725625440853,3.88563437,130.43,130.41,0.04865777]
[1725625441058,0.05143437,130.43,130.41,0.04865777]
[1725625441761,3.88563437,130.43,130.41,0.04865777]
[1725625442058,0.05143437,130.43,130.41,0.04865777]
[1725625442251,0.05143437,130.43,130.33,3.89448557]
[1725625442456,11.78,130.42,130.36,11.78]
[1725625442657,2.7883,130.41,130.36,11.78]
[1725625443360,3.8353,130.39,130.37,0.05781789]
[1725625444366,3.88980137,130.39,130.37,0.05781789]
[1725625445856,3.8355,130.38,130.37,0.05781789]
[1725625446052,3.8355,130.38,130.34,33.3065]
[1725625446258,3.8355,130.38,130.34,29.47]
[1725625447051,3.8355,130.38,130.34,33.3065]
[1725625447256,3.8355,130.38,130.35,0.05837642]
[1725625448757,5.18934108,130.4,130.35,0.05837642]
[1725625448967,3.8359,130.37,130.35,0.05837642]
[1725625449164,5.18934108,130.4,130.35,0.05837642]
[1725625449658,3.836,130.37,130.35,0.05837642]
[1725625449857,5.18934108,130.4,130.35,0.05837642]
[1725625450657,3.8359,130.37,130.35,0.05837642]
[1725625451158,3.8357,130.38,130.35,0.05837642]
[1725625452061,5.18934108,130.4,130.35,0.05837642]
[1725625452062,3.8358,130.37,130.35,0.05837642]
[1725625454755,3.8355,130.38,130.35,0.05837642]
[1725625455163,5.18934108,130.4,130.35,0.05837642]
[1725625455164,1.4101,130.4,130.35,29.52837642]
[1725625455464,1.4101,130.4,130.35,33.36447642]
[1725625455465,3.8354,130.39,130.35,33.36447642]
[1725625457267,3.8355,130.38,130.35,29.52837642]
[1725625457465,3.8355,130.38,130.35,0.05837642]
[1725625457759,3.8361,130.36,130.35,0.05837642]
[1725625458155,1.4101,130.4,130.35,29.52837642]
[1725625458362,1.4101,130.4,130.38,29.47]
[1725625458559,5.2451,130.4,130.38,29.47]
[1725625458862,5.2451,130.4,130.38,29.52808664]
[1725625461165,1.4101,130.4,130.38,0.05808664]
[1725625461369,1.4101,130.4,130.33,29.47]
[1725625461667,3.81867334,130.39,130.33,33.32935059]
[1725625462060,7.65397334,130.39,130.35,3.8363]
[1725625462460,7.65397334,130.39,130.36,0.05191943]
[1725625463161,3.8356,130.38,130.36,0.05191943]
[1725625463872,3.8358,130.37,130.36,0.05191943]
[1725625465561,3.8356,130.38,130.36,0.05191943]
[1725625466167,3.8353,130.39,130.36,0.05191943]
[1725625466771,3.74711297,130.39,130.36,0.05191943]
[1725625466972,1.4101,130.4,130.36,0.05191943]
[1725625467165,3.8356,130.38,130.36,0.05191943]
[1725625468572,3.8353,130.39,130.36,0.05191943]
[1725625469565,5.31916316,130.4,130.36,0.05191943]
[1725625469767,0.04851601,130.39,130.36,0.05191943]
[1725625470374,3.93502234,130.39,130.36,0.05191943]
[1725625470769,3.8355,130.38,130.36,0.05191943]
[1725625473470,3.8358,130.37,130.36,0.05191943]
[1725625475077,0.04851601,130.39,130.36,11.84191943]
[1725625475278,0.04851601,130.39,130.38,11.79]
[1725625479493,0.04851601,130.39,130.38,15.6255]
[1725625481779,7.9468,130.44,130.4,3.8348]
[1725625481982,7.9468,130.44,130.41,11.79]
[1725625482988,7.9468,130.44,130.41,11.84083355]
[1725625483379,7.9468,130.44,130.42,11.79]
[1725625483380,2.7095,130.44,130.42,11.79]
[1725625483984,2.75819749,130.44,130.42,11.79]
[1725625484593,0.04869749,130.44,130.42,11.79]
[1725625485087,0.04869749,130.44,130.41,11.84083355]
[1725625485287,3.88259749,130.44,130.41,11.84083355]
[1725625487384,0.04869749,130.44,130.43,15.624]
[1725625487589,0.04869749,130.44,130.41,0.05083355]
[1725625487791,0.04869749,130.44,130.41,11.84083355]
[1725625488002,3.88259749,130.44,130.41,11.84083355]
[1725625488794,0.04869749,130.44,130.41,15.67543355]
[1725625490688,0.04869749,130.44,130.41,0.05083355]
[1725625490993,1.36679749,130.44,130.41,0.05083355]
[1725625491389,5.20079749,130.44,130.41,0.05083355]
[1725625491897,5.20079749,130.44,130.43,11.79]
[1725625491898,0.04869749,130.44,130.43,11.79]
[1725625493689,0.04869749,130.44,130.43,15.624]
[1725625494594,0.04869749,130.44,130.43,11.79]
[1725625497599,0.04869749,130.44,130.41,0.05083355]
[1725625497792,0.04869749,130.44,130.43,11.79]
[1725625498384,2.6365,130.47,130.44,3.8336]
[1725625498691,2.6365,130.47,130.44,11.79]
[1725625498896,2.6365,130.47,130.42,3.8341]
[1725625499094,6.4695,130.47,130.44,11.79]
[1725625499296,2.6365,130.47,130.44,11.79]
[1725625499495,2.6365,130.47,130.44,11.84725096]
[1725625499700,2.68952571,130.47,130.44,11.84725096]
[1725625500297,2.68952571,130.47,130.44,0.05725096]
[1725625500490,11.79,130.46,130.44,0.05725096]
[1725625500686,3.8334,130.45,130.44,0.05725096]
[1725625501193,3.8333,130.46,130.44,0.05725096]
[1725625501585,4.02032571,130.47,130.44,11.84725096]
[1725625501790,7.85332571,130.47,130.44,11.84725096]
[1725625503197,7.85332571,130.47,130.44,15.68085096]
[1725625504002,7.85332571,130.47,130.44,11.84725096]
[1725625504187,2.68952571,130.47,130.45,11.79]
[1725625505303,2.68952571,130.47,130.44,0.05725096]
[1725625505800,3.8333,130.46,130.44,0.05725096]
[1725625506399,3.8333,130.46,130.44,11.84725096]
[1725625506800,3.88602571,130.47,130.44,11.84725096]
[1725625507200,3.88602571,130.47,130.45,11.79]
[1725625509518,0.05302571,130.47,130.45,11.79]
[1725625510707,3.88602571,130.47,130.45,11.79]
[1725625511703,0.05302571,130.47,130.44,0.05725096]
[1725625511907,2.80422571,130.47,130.44,0.05725096]
[1725625512112,3.8334,130.46,130.44,0.05725096]
[1725625512811,3.8334,130.45,130.44,0.05725096]
[1725625514103,3.8334,130.46,130.44,0.05725096]
[1725625515512,6.63722571,130.47,130.44,11.84725096]
[1725625517118,3.8332,130.46,130.44,11.84725096]
[1725625518004,6.63712571,130.47,130.44,15.68095096]
[1725625518404,2.80422571,130.47,130.44,11.84725096]
[1725625518617,3.8331,130.46,130.44,11.84725096]
[1725625519003,2.80422571,130.47,130.44,11.84725096]
[1725625519716,6.63722571,130.47,130.44,11.84725096]
[1725625520309,3.8334,130.45,130.44,0.05725096]
[1725625521204,3.8333,130.46,130.44,0.05725096]
[1725625521409,3.8333,130.46,130.45,11.79]
[1725625521609,2.80422571,130.47,130.45,11.79]
[1725625521916,6.63722571,130.47,130.45,11.79]
[1725625524016,3.8332,130.46,130.44,0.05725096]
[1725625529422,3.8334,130.45,130.44,0.05725096]
[1725625529622,2.80422571,130.47,130.44,0.05725096]
[1725625530620,3.8333,130.46,130.44,0.05725096]
[1725625531013,3.8333,130.46,130.44,11.84725096]
[1725625535226,3.8334,130.45,130.44,0.05725096]